[Event "Gibraltar Challengers A 2019"]
[Site "Caleta"]
[Date "2019.01.24"]
[Round "4"]
[White "Vinal Gutierrez, Pedro"]
[Black "Meszaros, Andras"]
[Result "0-1"]
[ECO "A41"]
[WhiteElo "1997"]
[BlackElo "2226"]
[Annotator "NA"]
[PlyCount "50"]
[EventDate "2019.01.18"]
[EventType "swiss"]
[EventCountry "GGB"]
[SourceTitle "playchess.com"]
[Source "ChessBase"]
[SourceQuality "1"]
[TimeControl "6600+10"]

{[%evp 10,46,40,32767,32767,-8,32767,32767,32767,-27,32767,-70,-86,-90,-91,-95,-59,-75,-82,-81,-25,32767,-26,-89,-123,-150,-126,32767,32767,32767,-226,-284,32767,32767,32767,32767,32767,-344,-366]} 1. d4 {[%emt 0:00:00]} g6 {[%emt 0:00:53]} 2. Bf4 {[%emt 0:00:00]} Bg7 {[%emt 0:00:12]} 3. e3 {[%emt 0:00:09]} d6 {[%emt 0:00:09]} 4. Nf3 {[%emt 0:00:24]} Nd7 {[%emt 0:00:12]} 5. Bc4 {[%emt 0:01:35]} h6 {[%emt 0:04:40] A41: 1 d4 d6: Tartakower System and Modern Defence} (5... e5 6. Bg5 Ngf6 7. dxe5 dxe5 8. Nc3 h6 9. Bxf6 Qxf6 10. Nd2 O-O 11. O-O Qh4 12. Qe2 Nc5 13. Nb3 Ne6 14. Bxe6 Bxe6 {0-1 (45) Tran,T (2491)-Sethuraman,S (2623) Moscow 2017}) 6. c3 {[%emt 0:01:06]} e5 {[%emt 0:01:21]} 7. dxe5 {[%emt 0:01:00]} dxe5 {[%emt 0:00:19]} 8. Bg3 {[%emt 0:03:46]} Qe7 $146 {[%emt 0:00:32]} ({Predecessor:} 8... Ne7 9. Qb3 O-O 10. Nbd2 a6 11. a4 Qe8 12. e4 Kh8 13. Bh4 {½-½ (40) Ozsoy,A (1855)-Karakurt,F (1885) Konya 2017}) 9. Qb3 {[%emt 0:02:59]} Nb6 {[%emt 0:14:48]} 10. Nxe5 {[%emt 0:03:29]} (10. Nbd2 $14) 10... Bxe5 {[%emt 0:01:35]} 11. Bxe5 {[%emt 0:00:48]} Qxe5 {[%emt 0:08:32]} 12. Bxf7+ {[%emt 0:00:12] [#]} Kf8 $1 {[%emt 0:00:22]} 13. Bxg6 {[%emt 0:00:43]} Be6 {[%emt 0:00:13]} 14. Qc2 {[%emt 0:03:22]} Nf6 {[%emt 0:00:09]} (14... Nc4 $17 15. Nd2 Nxd2 16. Qxd2 Kg7) 15. Nd2 {[%emt 0:01:30]} Qg5 {[%emt 0:06:01]} 16. f4 {[%emt 0:02:31]} Qxg2 {[%emt 0:02:26]} 17. O-O-O {[%emt 0:00:22]} Rd8 {[%emt 0:00:32]} ({And not} 17... Bxa2 18. b3 $11) 18. c4 {[%emt 0:04:26]} Nxc4 {[%emt 0:13:36]} 19. Nxc4 {[%emt 0:03:30]} Qxc2+ {[%emt 0:00:35]} 20. Kxc2 {[%emt 0:00:07]} Rxd1 {[%emt 0:00:19]} 21. Rxd1 {[%emt 0:00:12]} Bxc4 {[%emt 0:00:12]} 22. b3 {[%emt 0:00:50]} Bd5 {[%emt 0:02:26]} 23. Kd3 {[%emt 0:02:48]} Rg8 $19 {[%emt 0:01:20]} 24. Bf5 {[%emt 0:00:21]} Ke7 {[%emt 0:00:16]} 25. e4 {[%emt 0:00:15]} Bxe4+ {[%emt 0:00:09]} 0-1

[Event "Gibraltar Challengers A 2019"]
[Site "Caleta"]
[Date "2019.01.24"]
[Round "4"]
[White "Burke, Mitchell R"]
[Black "Saber, Yasser"]
[Result "1-0"]
[ECO "A02"]
[WhiteElo "1994"]
[BlackElo "2201"]
[Annotator "NA"]
[PlyCount "101"]
[EventDate "2019.01.18"]
[EventType "swiss"]
[EventCountry "GGB"]
[SourceTitle "playchess.com"]
[Source "ChessBase"]
[SourceQuality "1"]
[TimeControl "6600+10"]

1. e4 {[%emt 0:00:00]} d6 {[%emt 0:06:44]} 2. Nc3 {[%emt 0:00:39]} Nf6 {[%emt 0:00:04]} 3. f4 {[%emt 0:00:39]} g6 {[%emt 0:00:03]} 4. Nf3 {[%emt 0:01:45]} Bg7 {[%emt 0:00:07]} 5. g3 {[%emt 0:01:22] LiveBook: 31 Games} O-O {[%emt 0:00:05]} 6. Bg2 {[%emt 0:00:05]} Nc6 {[%emt 0:01:03]} 7. O-O {[%emt 0:05:31]} e5 {[%emt 0:00:20]} 8. d3 {[%emt 0:09:46]} Nd4 {[%emt 0:01:17]} 9. fxe5 {[%emt 0:16:05]} dxe5 {[%emt 0:01:46]} 10. Nxd4 {[%emt 0:13:28]} Qxd4+ {[%emt 0:10:17]} 11. Kh1 {[%emt 0:00:10]} c6 {[%emt 0:00:21]} 12. Bg5 {[%emt 0:10:08]} Ng4 {[%emt 0:02:01]} 13. Qe2 {[%emt 0:00:13]} f6 {[%emt 0:02:15]} 14. Bd2 {[%emt 0:00:38]} Bh6 {[%emt 0:00:16]} 15. Bxh6 {[%emt 0:02:09]} Nxh6 {[%emt 0:00:10]} 16. Nd1 {[%emt 0:10:05]} Kg7 {[%emt 0:03:08]} 17. Qe3 {[%emt 0:01:03]} Qd6 {[%emt 0:12:34]} 18. Nf2 {[%emt 0:05:21]} b6 {[%emt 0:00:41]} 19. Qe2 {[%emt 0:03:38]} Nf7 {[%emt 0:06:48]} 20. Ng4 {[%emt 0:08:42]} Ng5 {[%emt 0:03:32]} 21. Ne3 {[%emt 0:03:17]} Ne6 {[%emt 0:00:44]} 22. Qg4 {[%emt 0:02:22]} Qc5 {[%emt 0:15:21]} 23. Rae1 {[%emt 0:02:20]} Nd4 {[%emt 0:00:15]} 24. Qd1 {[%emt 0:01:33]} Rf7 {[%emt 0:07:45]} 25. c3 {[%emt 0:01:03]} Ne6 {[%emt 0:01:08]} 26. h4 {[%emt 0:01:25]} Qf8 {[%emt 0:04:09]} 27. Bh3 {[%emt 0:01:48]} Nc5 {[%emt 0:00:18]} 28. Bxc8 {[%emt 0:00:23]} Qxc8 {[%emt 0:00:02]} 29. b4 {[%emt 0:00:01]} Qh3+ {[%emt 0:00:16]} 30. Kg1 {[%emt 0:00:26]} Qxg3+ {[%emt 0:00:21]} 31. Ng2 {[%emt 0:01:47]} Qxd3 {[%emt 0:02:27]} 32. bxc5 {[%emt 0:00:34]} Qxc3 {[%emt 0:00:14]} 33. Qc1 {[%emt 0:01:38]} Qd4+ {[%emt 0:00:07]} 34. Kh1 {[%emt 0:00:45]} bxc5 {[%emt 0:01:30]} 35. h5 {[%emt 0:00:09]} g5 {[%emt 0:04:11]} 36. Rf3 {[%emt 0:01:54]} Rd8 {[%emt 0:01:59]} 37. Ne3 {[%emt 0:00:34]} Qb4 {[%emt 0:10:57]} 38. Nf5+ {[%emt 0:00:25]} Kh8 {[%emt 0:00:01]} 39. Rb3 {[%emt 0:01:13]} Qa4 {[%emt 0:04:49]} 40. Qxc5 {[%emt 0:00:17]} Qxa2 {[%emt 0:01:50]} 41. Qd6 {[%emt 0:00:09]} Qa5 {[%emt 0:04:21] [#]} 42. Rd1 $1 {[%emt 0:00:31]} Rg8 {[%emt 0:00:32]} 43. Nh6 {[%emt 0:00:51]} Qa4 {[%emt 0:00:09]} 44. Nxf7+ {[%emt 0:00:05]} Kg7 {[%emt 0:00:08]} 45. Qb4 {[%emt 0:00:15]} Qa2 {[%emt 0:00:12] [#]} 46. Nxg5 $1 {[%emt 0:00:17]} Qe2 {[%emt 0:00:11]} 47. Qe7+ {[%emt 0:00:08]} Kh6 {[%emt 0:00:05]} 48. Qxh7+ {[%emt 0:00:04]} Kxg5 {[%emt 0:00:05]} 49. Qxg8+ {[%emt 0:00:04]} Kf4 {[%emt 0:00:14]} 50. Qg1 {[%emt 0:00:17]} Qxe4+ {[%emt 0:00:16]} 51. Qg2 {[%emt 0:00:02]} 1-0

[Event "Gibraltar Challengers A 2019"]
[Site "Caleta"]
[Date "2019.01.24"]
[Round "4"]
[White "Adewole, Adeyinka"]
[Black "Jordan Martinez, David"]
[Result "0-1"]
[ECO "A16"]
[WhiteElo "1972"]
[BlackElo "2125"]
[Annotator "NA"]
[PlyCount "66"]
[EventDate "2019.01.18"]
[EventType "swiss"]
[EventCountry "GGB"]
[SourceTitle "playchess.com"]
[Source "ChessBase"]
[SourceQuality "1"]
[TimeControl "6600+10"]

1. Nf3 {[%emt 0:16:56]} Nf6 {[%emt 0:00:17]} 2. c4 {[%emt 0:00:14]} g6 {[%emt 0:00:21]} 3. Nc3 {[%emt 0:00:10]} Bg7 {[%emt 0:00:07]} 4. d3 {[%emt 0:00:06]} c5 {[%emt 0:01:47]} 5. Bg5 {[%emt 0:00:27]} Nc6 {[%emt 0:00:31]} 6. g3 {[%emt 0:00:28]} h6 {[%emt 0:00:26]} 7. Bd2 {[%emt 0:00:02]} O-O {[%emt 0:00:26]} 8. Qc1 {[%emt 0:00:35]} Kh7 {[%emt 0:00:22]} 9. h4 {[%emt 0:00:10]} h5 {[%emt 0:01:08]} 10. Bg2 {[%emt 0:00:31]} d6 {[%emt 0:01:41]} 11. O-O {[%emt 0:01:33]} Bg4 {[%emt 0:01:54]} 12. Ng5+ {[%emt 0:00:27]} Kg8 {[%emt 0:00:21]} 13. Re1 {[%emt 0:00:18]} Rb8 {[%emt 0:01:22]} 14. a3 {[%emt 0:01:19]} Nd4 {[%emt 0:00:44]} 15. f3 {[%emt 0:01:38]} Bd7 {[%emt 0:03:25]} 16. Qd1 {[%emt 0:00:18]} a6 {[%emt 0:01:46]} 17. Rb1 {[%emt 0:02:33]} b5 {[%emt 0:07:33]} 18. b4 {[%emt 0:00:21]} Qc8 {[%emt 0:11:54]} 19. Nd5 {[%emt 0:02:17]} Nxd5 {[%emt 0:13:07]} 20. cxd5 {[%emt 0:00:33]} Qb7 {[%emt 0:01:08]} 21. f4 {[%emt 0:05:40]} Bg4 {[%emt 0:08:53]} 22. Ne4 {[%emt 0:00:47]} Qa7 {[%emt 0:02:36]} 23. Be3 {[%emt 0:00:16]} Rfc8 {[%emt 0:02:20]} 24. bxc5 {[%emt 0:01:38]} dxc5 $17 {[%emt 0:00:06]} 25. Nf2 {[%emt 0:00:06]} Bf5 {[%emt 0:01:48]} 26. Bd2 {[%emt 0:00:56]} c4 {[%emt 0:08:57]} 27. e4 {[%emt 0:01:15]} c3 {[%emt 0:01:18]} 28. Bxc3 {[%emt 0:08:44]} Rxc3 {[%emt 0:00:09]} 29. exf5 {[%emt 0:00:11]} Nxf5 {[%emt 0:00:24]} 30. Qf3 {[%emt 0:01:34]} Rc2 {[%emt 0:02:03]} 31. Kf1 {[%emt 0:04:34]} Bd4 {[%emt 0:06:10]} 32. Re2 {[%emt 0:03:20]} Ne3+ {[%emt 0:02:10]} 33. Ke1 {[%emt 0:00:16]} Bc3+ {[%emt 0:00:13] Kf1 [%emt 00:00:27]} 0-1

[Event "Gibraltar Challengers A 2019"]
[Site "Caleta"]
[Date "2019.01.24"]
[Round "4"]
[White "Lutz, Juergen"]
[Black "Spacapan, Simon"]
[Result "0-1"]
[ECO "E04"]
[WhiteElo "1960"]
[BlackElo "2061"]
[Annotator "NA"]
[PlyCount "52"]
[EventDate "2019.01.18"]
[EventType "swiss"]
[EventCountry "GGB"]
[SourceTitle "playchess.com"]
[Source "ChessBase"]
[SourceQuality "1"]
[TimeControl "6600+10"]

1. c4 {[%emt 0:00:05]} c6 {[%emt 0:00:00]} 2. Nc3 {[%emt 0:04:51]} d5 {[%emt 0:00:11]} 3. d4 {[%emt 0:00:09]} Nf6 {[%emt 0:00:05]} 4. Nf3 {[%emt 0:00:06]} dxc4 {[%emt 0:00:08]} 5. g3 {[%emt 0:03:58]} b5 {[%emt 0:07:10]} 6. Bg2 {[%emt 0:05:01]} Bb7 {[%emt 0:00:58]} 7. O-O {[%emt 0:00:45]} e6 {[%emt 0:02:39]} 8. Qc2 {[%emt 0:02:27]} Be7 {[%emt 0:05:24]} 9. Rd1 $15 {[%emt 0:02:58]} O-O {[%emt 0:01:53]} 10. h4 {[%emt 0:17:19]} Nbd7 {[%emt 0:03:35]} 11. a3 {[%emt 0:16:26]} Qb6 {[%emt 0:03:49]} 12. e4 {[%emt 0:14:23]} Rfd8 {[%emt 0:17:46]} 13. e5 {[%emt 0:00:13]} Nd5 {[%emt 0:00:39]} 14. Ne4 {[%emt 0:00:02]} c5 {[%emt 0:05:53]} 15. Neg5 {[%emt 0:01:08]} Nf8 {[%emt 0:01:32]} 16. h5 {[%emt 0:14:01]} cxd4 {[%emt 0:04:39]} 17. Nxd4 {[%emt 0:00:07]} h6 {[%emt 0:09:25]} 18. Nxf7 {[%emt 0:12:40]} Kxf7 {[%emt 0:00:42]} 19. Bh3 {[%emt 0:00:01]} Nc7 {[%emt 0:07:43]} 20. Be3 {[%emt 0:00:24]} Bc5 {[%emt 0:00:28]} 21. Nxe6 {[%emt 0:07:39]} Ncxe6 {[%emt 0:01:08]} 22. Qf5+ {[%emt 0:00:01]} Kg8 {[%emt 0:04:56]} 23. Rd6 {[%emt 0:06:37]} Rxd6 {[%emt 0:01:51]} 24. exd6 {[%emt 0:00:03]} Bxe3 {[%emt 0:00:34]} 25. Qe5 {[%emt 0:00:01]} Bxf2+ {[%emt 0:01:18]} 26. Kh2 {[%emt 0:00:02]} Qe3 {[%emt 0:00:55]} 0-1

[Event "Gibraltar Challengers A 2019"]
[Site "Caleta"]
[Date "2019.01.24"]
[Round "4"]
[White "Sikkel, Dirk"]
[Black "Boardman, Jeffrey"]
[Result "0-1"]
[ECO "B13"]
[WhiteElo "1943"]
[BlackElo "2005"]
[Annotator "NA"]
[PlyCount "88"]
[EventDate "2019.01.18"]
[EventType "swiss"]
[EventCountry "GGB"]
[SourceTitle "playchess.com"]
[Source "ChessBase"]
[SourceQuality "1"]
[TimeControl "6600+10"]

1. e4 {[%emt 0:00:00]} c6 {[%emt 0:00:00]} 2. d4 {[%emt 0:00:02]} d5 {[%emt 0:00:00]} 3. exd5 {[%emt 0:00:09]} cxd5 {[%emt 0:00:03]} 4. Bd3 {[%emt 0:00:04]} Nf6 {[%emt 0:00:31]} 5. Bf4 {[%emt 0:00:50]} e6 {[%emt 0:01:33]} 6. c3 {[%emt 0:03:28]} Bd6 {[%emt 0:01:01]} 7. Bxd6 {[%emt 0:01:05]} Qxd6 {[%emt 0:00:05]} 8. Nf3 {[%emt 0:00:47]} O-O {[%emt 0:04:10]} 9. O-O {[%emt 0:00:57]} b6 {[%emt 0:01:14]} 10. Nbd2 {[%emt 0:07:36]} Ba6 {[%emt 0:02:14]} 11. Bxa6 {[%emt 0:02:48]} Nxa6 {[%emt 0:00:06]} 12. Ne5 {[%emt 0:01:25]} b5 {[%emt 0:04:45]} 13. Re1 {[%emt 0:05:51]} Rfc8 {[%emt 0:03:19]} 14. Re3 {[%emt 0:02:21]} Nb8 {[%emt 0:10:23]} 15. Qf3 {[%emt 0:07:43]} Nc6 {[%emt 0:02:22]} 16. Rae1 {[%emt 0:01:16]} b4 {[%emt 0:04:03]} 17. g4 {[%emt 0:06:37]} bxc3 {[%emt 0:03:40]} 18. bxc3 {[%emt 0:00:29]} Rc7 {[%emt 0:06:57]} 19. g5 {[%emt 0:04:43]} Ne8 {[%emt 0:00:06]} 20. Qh5 {[%emt 0:04:13]} g6 {[%emt 0:06:13]} 21. Qh4 {[%emt 0:02:30]} Nxe5 {[%emt 0:09:32]} 22. dxe5 {[%emt 0:01:08]} Qf8 {[%emt 0:00:24]} 23. Rh3 {[%emt 0:02:28]} Qg7 {[%emt 0:00:37]} 24. Ree3 {[%emt 0:03:57]} Qh8 {[%emt 0:02:23]} 25. Nf3 {[%emt 0:03:08]} Ng7 {[%emt 0:00:38]} 26. Nd4 {[%emt 0:00:20]} Rc4 {[%emt 0:01:38]} 27. Qg3 {[%emt 0:01:34]} Rac8 {[%emt 0:01:03]} 28. Kg2 {[%emt 0:07:08]} Nh5 {[%emt 0:03:04]} 29. Qf3 {[%emt 0:01:47]} Qg7 {[%emt 0:01:25]} 30. Rh4 {[%emt 0:01:59]} Qf8 {[%emt 0:01:16]} 31. Qh3 {[%emt 0:10:32]} Qc5 {[%emt 0:06:05]} 32. Rxh5 {[%emt 0:07:04]} gxh5 {[%emt 0:00:44]} 33. Nxe6 {[%emt 0:00:30]} Rg4+ {[%emt 0:04:13]} 34. Qxg4 {[%emt 0:09:18]} Qxe3 {[%emt 0:00:16]} 35. Qf5 {[%emt 0:01:12]} Qe4+ {[%emt 0:00:15]} 36. Qxe4 {[%emt 0:00:59]} dxe4 {[%emt 0:00:02]} 37. Nf4 {[%emt 0:00:35]} Rxc3 {[%emt 0:01:31]} 38. Nxh5 {[%emt 0:00:00]} e3 {[%emt 0:01:09]} 39. fxe3 {[%emt 0:00:20]} Rxe3 {[%emt 0:00:11]} 40. Nf6+ {[%emt 0:01:26]} Kh8 {[%emt 0:00:07]} 41. Ng4 {[%emt 0:00:29]} Re2+ {[%emt 0:00:12]} 42. Kf3 {[%emt 0:00:33]} Rxa2 {[%emt 0:00:09]} 43. h4 {[%emt 0:00:35]} a5 {[%emt 0:00:10]} 44. Ne3 {[%emt 0:01:28]} a4 {[%emt 0:00:23]} 0-1

[Event "Gibraltar Challengers A 2019"]
[Site "Caleta"]
[Date "2019.01.24"]
[Round "4"]
[White "Brown, David"]
[Black "Francois-Haugrin, Said"]
[Result "1-0"]
[ECO "B73"]
[WhiteElo "1931"]
[BlackElo "1825"]
[Annotator "NA"]
[PlyCount "67"]
[EventDate "2019.01.18"]
[EventType "swiss"]
[EventCountry "GGB"]
[SourceTitle "playchess.com"]
[Source "ChessBase"]
[SourceQuality "1"]
[TimeControl "6600+10"]

1. e4 {[%emt 0:00:00]} c5 {[%emt 0:02:04]} 2. Nc3 {[%emt 0:00:09]} Nc6 {[%emt 0:00:09]} 3. Nf3 {[%emt 0:00:08]} g6 {[%emt 0:03:36]} 4. d4 {[%emt 0:00:34]} cxd4 {[%emt 0:00:13]} 5. Nxd4 {[%emt 0:00:00]} Bg7 {[%emt 0:00:09]} 6. Be3 {[%emt 0:00:30]} Nf6 {[%emt 0:00:22]} 7. Be2 {[%emt 0:04:47]} O-O {[%emt 0:00:33]} 8. O-O {[%emt 0:01:10]} d6 {[%emt 0:18:05]} 9. h3 {[%emt 0:00:24]} a6 {[%emt 0:00:57]} 10. Qd2 {[%emt 0:03:26]} Bd7 {[%emt 0:04:46]} 11. f4 {[%emt 0:05:47]} b5 {[%emt 0:03:28]} 12. Nxc6 {[%emt 0:05:43]} Bxc6 {[%emt 0:00:04]} 13. Bf3 {[%emt 0:00:21]} b4 {[%emt 0:14:23]} 14. Nd5 {[%emt 0:00:29]} Nxd5 {[%emt 0:00:11]} 15. exd5 {[%emt 0:00:04]} Bb5 {[%emt 0:00:03]} 16. Rfb1 {[%emt 0:03:08]} Rc8 {[%emt 0:03:47]} 17. Bd1 {[%emt 0:13:54]} Ba4 {[%emt 0:17:52]} 18. a3 {[%emt 0:02:28]} bxa3 {[%emt 0:02:52]} 19. Rxa3 {[%emt 0:00:02]} Bb5 {[%emt 0:01:10]} 20. c3 {[%emt 0:05:30]} Qd7 {[%emt 0:04:22]} 21. Bg4 {[%emt 0:08:42]} f5 {[%emt 0:01:46]} 22. Be2 {[%emt 0:00:16]} e5 {[%emt 0:00:51]} 23. dxe6 {[%emt 0:01:25]} Qxe6 {[%emt 0:00:11]} 24. Bf3 {[%emt 0:05:44]} Qe7 {[%emt 0:03:51]} 25. Bd5+ {[%emt 0:02:32]} Kh8 {[%emt 0:00:01]} 26. Bd4 {[%emt 0:08:14]} Rfe8 {[%emt 0:01:29]} 27. Bf3 {[%emt 0:25:41]} Kg8 {[%emt 0:14:22]} 28. Bxg7 {[%emt 0:01:30]} Kxg7 {[%emt 0:00:13]} 29. Rd1 {[%emt 0:01:26]} Rcd8 {[%emt 0:01:25]} 30. c4 {[%emt 0:03:00]} Qa7+ {[%emt 0:02:43]} 31. Qd4+ {[%emt 0:02:25]} Qxd4+ {[%emt 0:00:07]} 32. Rxd4 {[%emt 0:00:01]} Bd7 {[%emt 0:00:54]} 33. Rxa6 {[%emt 0:00:18]} Rb8 {[%emt 0:01:05]} 34. Ra7 {[%emt 0:00:55]} 1-0

[Event "Gibraltar Challengers A 2019"]
[Site "Caleta"]
[Date "2019.01.24"]
[Round "4"]
[White "Nandi, Robin J"]
[Black "Hamer, Martyn"]
[Result "0-1"]
[ECO "C79"]
[WhiteElo "1903"]
[BlackElo "2046"]
[Annotator "NA"]
[PlyCount "101"]
[EventDate "2019.01.18"]
[EventType "swiss"]
[EventCountry "GGB"]
[SourceTitle "playchess.com"]
[Source "ChessBase"]
[SourceQuality "1"]
[TimeControl "6600+10"]

1. e4 {[%emt 0:07:41]} e5 {[%emt 0:00:05]} 2. Nf3 {[%emt 0:00:08]} Nc6 {[%emt 0:00:05]} 3. Bb5 {[%emt 0:00:07]} a6 {[%emt 0:00:07]} 4. Ba4 {[%emt 0:00:04]} d6 {[%emt 0:00:07]} 5. c3 {[%emt 0:00:26]} Bd7 {[%emt 0:00:09]} 6. d4 {[%emt 0:00:50]} g6 {[%emt 0:00:27]} 7. O-O {[%emt 0:00:52]} Bg7 {[%emt 0:00:03]} 8. Re1 {[%emt 0:01:22]} Nf6 {[%emt 0:01:47]} 9. Nbd2 {[%emt 0:01:38]} O-O {[%emt 0:03:40]} 10. Bxc6 {[%emt 0:03:21]} Bxc6 {[%emt 0:00:10]} 11. dxe5 {[%emt 0:00:08]} dxe5 {[%emt 0:00:12]} 12. Nxe5 {[%emt 0:00:45]} Bxe4 {[%emt 0:01:19]} 13. Nxe4 {[%emt 0:08:06]} Nxe4 {[%emt 0:02:33]} 14. Bf4 {[%emt 0:02:54]} Nc5 {[%emt 0:03:43]} 15. Qf3 {[%emt 0:06:21]} Qf6 {[%emt 0:06:44]} 16. Qe3 {[%emt 0:11:17]} Ne6 {[%emt 0:03:29]} 17. Bh6 {[%emt 0:02:24]} Rfd8 {[%emt 0:05:09]} 18. Ng4 {[%emt 0:15:16]} Qf5 {[%emt 0:05:21]} 19. Bxg7 {[%emt 0:00:29]} Kxg7 {[%emt 0:00:11]} 20. Qh6+ {[%emt 0:01:58]} Kh8 {[%emt 0:08:49]} 21. h3 {[%emt 0:16:14]} Rd5 {[%emt 0:12:05]} 22. Ne3 {[%emt 0:07:49]} Qg5 {[%emt 0:00:30]} 23. Qxg5 {[%emt 0:00:17]} Rxg5 {[%emt 0:00:06]} 24. Rad1 {[%emt 0:00:26]} Kg7 {[%emt 0:02:15]} 25. Rd7 {[%emt 0:01:06]} Rd8 {[%emt 0:01:33]} 26. Red1 {[%emt 0:01:27]} Rxd7 {[%emt 0:00:08]} 27. Rxd7 {[%emt 0:00:01]} Rc5 {[%emt 0:01:34]} 28. c4 {[%emt 0:04:45]} a5 {[%emt 0:04:25]} 29. a3 {[%emt 0:02:53]} a4 {[%emt 0:01:02]} 30. Rd5 {[%emt 0:01:52]} c6 {[%emt 0:03:50]} 31. Rxc5 {[%emt 0:02:08]} Nxc5 {[%emt 0:00:05]} 32. Kf1 {[%emt 0:02:55]} Kf6 {[%emt 0:03:16]} 33. Ke2 {[%emt 0:00:39]} Ke5 {[%emt 0:00:55]} 34. Nc2 {[%emt 0:03:20]} f5 {[%emt 0:01:47]} 35. Ke3 {[%emt 0:01:38]} f4+ {[%emt 0:00:18]} 36. Ke2 {[%emt 0:00:12]} g5 {[%emt 0:05:52]} 37. f3 {[%emt 0:00:22]} Ne6 {[%emt 0:06:51]} 38. Kd3 {[%emt 0:00:24]} c5 {[%emt 0:00:25]} 39. Kc3 {[%emt 0:00:35]} Ng7 {[%emt 0:00:56]} 40. b3 {[%emt 0:00:40]} axb3 {[%emt 0:00:13]} 41. Kxb3 {[%emt 0:00:01]} Nf5 {[%emt 0:00:23]} 42. Kc3 {[%emt 0:00:21]} h5 {[%emt 0:04:22]} 43. Ne1 {[%emt 0:00:17]} Ne3 {[%emt 0:00:19]} 44. Nd3+ {[%emt 0:00:08]} Kd6 {[%emt 0:00:18]} 45. h4 {[%emt 0:00:07]} gxh4 {[%emt 0:01:53]} 46. Nxf4 {[%emt 0:00:09]} Nxg2 {[%emt 0:06:46]} 47. Nxg2 {[%emt 0:00:35]} h3 {[%emt 0:00:05]} 48. Ne3 {[%emt 0:00:14]} Ke5 {[%emt 0:00:23]} 49. Nf1 {[%emt 0:00:13]} Kf4 {[%emt 0:00:19]} 50. Kd2 {[%emt 0:00:16]} Ke5 {[%emt 0:00:42]} 51. Kd1 0-1

[Event "Gibraltar Challengers A 2019"]
[Site "Caleta"]
[Date "2019.01.24"]
[Round "4"]
[White "Fischer, Gerd"]
[Black "Suez-Panama, Gilles"]
[Result "0-1"]
[ECO "E71"]
[WhiteElo "1845"]
[BlackElo "2078"]
[Annotator "NA"]
[PlyCount "84"]
[EventDate "2019.01.18"]
[EventType "swiss"]
[EventCountry "GGB"]
[SourceTitle "playchess.com"]
[Source "ChessBase"]
[SourceQuality "1"]
[TimeControl "6600+10"]

1. d4 {[%emt 0:00:00]} Nf6 {[%emt 0:02:00]} 2. c4 {[%emt 0:00:07]} g6 {[%emt 0:00:04]} 3. Nc3 {[%emt 0:00:24]} Bg7 {[%emt 0:00:04]} 4. e4 {[%emt 0:00:26]} d6 {[%emt 0:00:07]} 5. h3 {[%emt 0:00:44]} O-O {[%emt 0:01:10]} 6. Be3 {[%emt 0:01:32] LiveBook: 876 Games} b6 {[%emt 0:01:15] E71: King's Indian: 4 e4 d6 5 h3} (6... e5 7. d5 a5 8. g4 Na6 9. Nge2 Nd7 10. Qd2 Ndc5 11. Ng3 c6 12. Be2 cxd5 13. cxd5 a4 14. h4 Bd7 15. h5 Rc8 {0-1 (39) Caruana,F (2832)-Nakamura,H (2746) London 2018}) 7. Nf3 {[%emt 0:04:05]} Bb7 {[%emt 0:00:41]} 8. Qc2 {[%emt 0:01:03]} c5 {[%emt 0:01:16]} 9. d5 {[%emt 0:03:01]} Na6 $146 {[%emt 0:01:51]} ({Predecessor:} 9... Nbd7 10. Be2 Ne5 11. Nxe5 dxe5 12. O-O Ne8 13. Rad1 Nd6 14. Qd2 f5 15. exf5 gxf5 {1-0 (52) Durakovic,F-Schuler,G (1904) Ellwangen 1997}) 10. Be2 {[%emt 0:04:51]} Nd7 {[%emt 0:02:33]} 11. O-O {[%emt 0:05:32]} Nc7 {[%emt 0:01:49]} 12. Nd2 {[%emt 0:14:24]} e5 {[%emt 0:05:24]} 13. Bd3 {[%emt 0:10:36]} Nf6 {[%emt 0:05:59]} 14. Be2 {[%emt 0:03:47]} Nfe8 {[%emt 0:06:56]} 15. Bd3 {[%emt 0:04:35]} Bc8 {[%emt 0:01:21]} 16. Rae1 {[%emt 0:01:45]} Qh4 {[%emt 0:08:06]} 17. Nf3 {[%emt 0:06:50]} Qe7 {[%emt 0:00:38]} 18. Nd2 {[%emt 0:10:04]} Qh4 {[%emt 0:01:11]} 19. Nf3 {[%emt 0:00:22]} Qd8 {[%emt 0:00:07]} 20. Nd2 {[%emt 0:00:21]} Bd7 {[%emt 0:05:34]} 21. f4 {[%emt 0:04:44]} Bh6 {[%emt 0:03:55]} 22. f5 {[%emt 0:07:56]} Bxe3+ {[%emt 0:00:40]} 23. Rxe3 {[%emt 0:00:09]} g5 {[%emt 0:02:52]} 24. g4 {[%emt 0:08:46]} f6 {[%emt 0:00:36]} 25. Ndb1 {[%emt 0:04:18]} Ng7 {[%emt 0:00:26]} 26. Qh2 {[%emt 0:01:57]} Kf7 {[%emt 0:01:57]} 27. h4 {[%emt 0:01:14]} h6 $18 {[%emt 0:01:05]} 28. Rh3 {[%emt 0:00:21]} Rh8 {[%emt 0:01:47]} 29. Rff3 {[%emt 0:01:45]} h5 {[%emt 0:06:16]} 30. Rfg3 {[%emt 0:03:27]} hxg4 {[%emt 0:08:01]} 31. Rxg4 {[%emt 0:00:14]} Rxh4 {[%emt 0:02:44]} 32. Rgxh4 {[%emt 0:00:26]} gxh4 {[%emt 0:00:02]} 33. Rxh4 {[%emt 0:00:11]} Qg8 {[%emt 0:00:34]} 34. Rh7 {[%emt 0:00:32]} Rf8 {[%emt 0:00:30]} 35. Qh5+ {[%emt 0:00:56]} Ke7 {[%emt 0:00:06]} 36. Qg6 {[%emt 0:00:14]} Nce8 {[%emt 0:00:27]} 37. Kf2 {[%emt 0:00:32]} Qf7 {[%emt 0:02:02]} 38. Qh6 {[%emt 0:00:30]} Rg8 {[%emt 0:00:28]} 39. Be2 {[%emt 0:00:17]} Kd8 {[%emt 0:00:28]} 40. Nd2 {[%emt 0:01:00]} Nc7 {[%emt 0:05:58]} 41. Nf1 {[%emt 0:01:36]} Qf8 {[%emt 0:00:32]} 42. Ng3 {[%emt 0:00:30]} Nge8 {[%emt 0:00:40]} 0-1

[Event "Gibraltar Challengers A 2019"]
[Site "Caleta"]
[Date "2019.01.24"]
[Round "4"]
[White "Dhanwani, Aditya"]
[Black "Herzwurm, Robert"]
[Result "0-1"]
[ECO "D02"]
[WhiteElo "1497"]
[BlackElo "2021"]
[Annotator "NA"]
[PlyCount "42"]
[EventDate "2019.01.18"]
[EventType "swiss"]
[EventCountry "GGB"]
[SourceTitle "playchess.com"]
[Source "ChessBase"]
[SourceQuality "1"]
[TimeControl "6600+10"]

1. d4 {[%emt 0:01:10]} Nf6 {[%emt 0:00:13]} 2. Nf3 {[%emt 0:00:49]} g6 {[%emt 0:00:24]} 3. Bf4 {[%emt 0:01:05]} Bg7 {[%emt 0:00:44]} 4. e3 {[%emt 0:00:34]} O-O {[%emt 0:02:21]} 5. Nbd2 {[%emt 0:00:59]} d5 {[%emt 0:03:57]} 6. c4 {[%emt 0:04:08]} c5 {[%emt 0:30:21]} 7. Be2 {[%emt 0:09:01]} cxd4 $11 {[%emt 0:07:09]} 8. Nxd4 {[%emt 0:02:44]} Nbd7 {[%emt 0:01:33]} 9. O-O {[%emt 0:01:52]} e5 {[%emt 0:00:36]} 10. Bg5 {[%emt 0:03:20]} exd4 {[%emt 0:00:36]} 11. cxd5 {[%emt 0:00:11]} Qe8 {[%emt 0:20:47]} 12. exd4 {[%emt 0:01:15]} Nxd5 {[%emt 0:02:04]} 13. Bb5 {[%emt 0:02:28]} Qe6 {[%emt 0:04:00]} 14. Re1 {[%emt 0:02:23]} Qb6 {[%emt 0:02:32]} 15. Qb3 {[%emt 0:01:13]} N7f6 {[%emt 0:03:05]} 16. Nc4 {[%emt 0:10:47]} Qxd4 {[%emt 0:01:55]} 17. Rad1 {[%emt 0:01:08]} Qc5 {[%emt 0:02:35]} 18. Re5 {[%emt 0:04:34]} Be6 {[%emt 0:02:01]} 19. Be3 {[%emt 0:11:32]} Qc7 {[%emt 0:03:47]} 20. Rg5 {[%emt 0:04:21]} a6 {[%emt 0:00:53]} 21. Rgxd5 {[%emt 0:02:13]} Nxd5 {[%emt 0:01:23]} 0-1